[Event "Titled Tuesday Blitz May 23 Late 2023"]
[White "Arnold, Ken"]
[Black "Colas, Joshua"]
[WhiteFideId "2056836"]
[BlackFideId "2044447"]
[WhiteElo "2418"]
[BlackElo "2347"]
[Result "1-0"]
[Round "06"]
[TimeControl "180+2"]
[Date "2023.05.23"]
[WhiteClock "0:01:40"]
[BlackClock "0:01:44"]

1. d4 {[%clk 0:03:00]}  d5 {[%clk 0:02:55]} 2. Nf3 {[%clk 0:03:01]}  Nf6 {[%clk 0:02:56]} 3. c3 {[%clk 0:03:01]}  Bf5 {[%clk 0:02:55]} 4. Bf4 {[%clk 0:03:01]}  e6 {[%clk 0:02:44]} 5. e3 {[%clk 0:03:01]}  Bd6 {[%clk 0:02:43]} 6. Bd3 {[%clk 0:03:01]}  O-O {[%clk 0:02:37]} 7. O-O {[%clk 0:03:01]}  c5 {[%clk 0:02:34]} 8. Bxd6 {[%clk 0:03:00]}  Qxd6 {[%clk 0:02:21]} 9. dxc5 {[%clk 0:02:57]}  Qxc5 {[%clk 0:02:20]} 10. Bxf5 {[%clk 0:02:57]}  exf5 {[%clk 0:02:21]} 11. Nd4 {[%clk 0:02:56]}  g6 {[%clk 0:02:21]} 12. Nd2 {[%clk 0:02:55]}  Nc6 {[%clk 0:02:19]} 13. N2b3 {[%clk 0:02:55]}  Qe7 {[%clk 0:02:17]} 14. Qe2 {[%clk 0:02:50]}  Rfe8 {[%clk 0:02:15]} 15. Rfd1 {[%clk 0:02:48]}  f4 {[%clk 0:02:14]} 16. Re1 {[%clk 0:02:33]}  fxe3 {[%clk 0:02:13]} 17. Qxe3 {[%clk 0:02:32]}  Qxe3 {[%clk 0:02:13]} 18. Rxe3 {[%clk 0:02:32]}  Rxe3 {[%clk 0:02:13]} 19. fxe3 {[%clk 0:02:32]}  Ne5 {[%clk 0:02:14]} 20. Rd1 {[%clk 0:02:22]}  Nc4 {[%clk 0:02:14]} 21. Nc5 {[%clk 0:02:14]}  b6 {[%clk 0:02:12]} 22. Nd3 {[%clk 0:02:10]}  Nxe3 {[%clk 0:02:12]} 23. Re1 {[%clk 0:02:08]}  Nc4 {[%clk 0:02:13]} 24. Re7 {[%clk 0:02:07]}  Re8 {[%clk 0:02:07]} 25. Rxa7 {[%clk 0:02:03]}  Re3 {[%clk 0:02:02]} 26. b3 {[%clk 0:01:53]}  Nd2 {[%clk 0:01:48]} 27. Nf4 {[%clk 0:01:46]}  Re1+ {[%clk 0:01:44]} 28. Kf2 {[%clk 0:01:42]}  Nfe4+ {[%clk 0:01:44]} 29. Kxe1 {[%clk 0:01:40]} 1-0


[Site "https://www.chess.com"]

[Event "Titled Tuesday Blitz May 23 Late 2023"]
[White "Carrasco Miranda, Andres"]
[Black "Arabidze, Meri"]
[WhiteFideId "3405990"]
[BlackFideId "13604040"]
[WhiteElo "2183"]
[BlackElo "2405"]
[Result "0-1"]
[Round "06"]
[TimeControl "180+2"]
[Date "2023.05.23"]
[WhiteClock "0:00:59"]
[BlackClock "0:02:00"]

1. d4 {[%clk 0:03:00]}  Nf6 {[%clk 0:02:58]} 2. c4 {[%clk 0:03:00]}  e6 {[%clk 0:02:59]} 3. g3 {[%clk 0:03:00]}  d5 {[%clk 0:02:52]} 4. Bg2 {[%clk 0:03:01]}  Bb4+ {[%clk 0:02:52]} 5. Nd2 {[%clk 0:03:00]}  O-O {[%clk 0:02:50]} 6. Nf3 {[%clk 0:03:00]}  c5 {[%clk 0:02:49]} 7. O-O {[%clk 0:02:58]}  cxd4 {[%clk 0:02:47]} 8. Nxd4 {[%clk 0:02:59]}  Nc6 {[%clk 0:02:47]} 9. Nc2 {[%clk 0:02:55]}  Be7 {[%clk 0:02:37]} 10. cxd5 {[%clk 0:02:54]}  exd5 {[%clk 0:02:36]} 11. b3 {[%clk 0:02:52]}  Bg4 {[%clk 0:02:35]} 12. Bb2 {[%clk 0:02:52]}  Re8 {[%clk 0:02:35]} 13. Ne3 {[%clk 0:02:49]}  Be6 {[%clk 0:02:32]} 14. Nf3 {[%clk 0:02:47]}  Bc5 {[%clk 0:02:30]} 15. Nd4 {[%clk 0:02:38]}  Bb6 {[%clk 0:02:30]} 16. Rc1 {[%clk 0:02:38]}  Rc8 {[%clk 0:02:29]} 17. Nxe6 {[%clk 0:02:36]}  fxe6 {[%clk 0:02:29]} 18. Qd2 {[%clk 0:02:27]}  Qe7 {[%clk 0:02:22]} 19. a3 {[%clk 0:02:16]}  Rf8 {[%clk 0:02:21]} 20. b4 {[%clk 0:02:16]}  a6 {[%clk 0:02:22]} 21. Bh3 {[%clk 0:02:04]}  Rce8 {[%clk 0:02:19]} 22. Ng4 {[%clk 0:01:56]}  Ne4 {[%clk 0:02:15]} 23. Qd3 {[%clk 0:01:44]}  Qg5 {[%clk 0:02:13]} 24. e3 {[%clk 0:01:26]}  Qh5 {[%clk 0:02:02]} 25. Kg2 {[%clk 0:01:19]}  Ng5 {[%clk 0:02:02]} 26. Qe2 {[%clk 0:01:01]}  Qxh3+ {[%clk 0:02:01]} 27. Kg1 {[%clk 0:00:59]}  Nf3+ {[%clk 0:02:00]} 0-1


[Site "https://www.chess.com"]

[Event "Titled Tuesday Blitz May 23 Late 2023"]
[White "Djabri,Massinas"]
[Black "Eugene, Floryan"]
[WhiteFideId "7905726"]
[BlackFideId "20694784"]
[WhiteElo "2194"]
[BlackElo "2369"]
[Result "0-1"]
[Round "06"]
[TimeControl "180+2"]
[Date "2023.05.23"]
[WhiteClock "0:00:00"]
[BlackClock "0:00:11"]

1. d4 {[%clk 0:02:59]}  f5 {[%clk 0:02:58]} 2. c4 {[%clk 0:02:56]}  Nf6 {[%clk 0:02:58]} 3. Nf3 {[%clk 0:02:56]}  g6 {[%clk 0:02:58]} 4. g3 {[%clk 0:02:57]}  Bg7 {[%clk 0:02:58]} 5. Bg2 {[%clk 0:02:57]}  O-O {[%clk 0:02:58]} 6. O-O {[%clk 0:02:58]}  d6 {[%clk 0:02:58]} 7. Nc3 {[%clk 0:02:58]}  c6 {[%clk 0:02:58]} 8. d5 {[%clk 0:02:58]}  e5 {[%clk 0:02:56]} 9. e4 {[%clk 0:02:59]}  c5 {[%clk 0:02:40]} 10. exf5 {[%clk 0:02:41]}  gxf5 {[%clk 0:02:38]} 11. Ng5 {[%clk 0:02:39]}  Re8 {[%clk 0:01:49]} 12. Qc2 {[%clk 0:02:12]}  e4 {[%clk 0:01:46]} 13. Ne2 {[%clk 0:02:02]}  h6 {[%clk 0:01:39]} 14. Nh3 {[%clk 0:01:59]}  Nbd7 {[%clk 0:01:37]} 15. f3 {[%clk 0:01:49]}  Ne5 {[%clk 0:01:33]} 16. fxe4 {[%clk 0:01:43]}  Nxe4 {[%clk 0:01:32]} 17. Nef4 {[%clk 0:01:31]}  Ng4 {[%clk 0:01:20]} 18. Kh1 {[%clk 0:01:19]}  Bd4 {[%clk 0:01:16]} 19. Nh5 {[%clk 0:01:13]}  Qc7 {[%clk 0:00:56]} 20. Bf3 {[%clk 0:00:37]}  Qh7 {[%clk 0:00:43]} 21. N3f4 {[%clk 0:00:23]}  Bd7 {[%clk 0:00:36]} 22. h3 {[%clk 0:00:20]}  Ne5 {[%clk 0:00:32]} 23. Bxe4 {[%clk 0:00:18]}  Nxc4 {[%clk 0:00:29]} 24. Qxc4 {[%clk 0:00:14]}  Rxe4 {[%clk 0:00:28]} 25. Qxd4 {[%clk 0:00:13]}  cxd4 {[%clk 0:00:26]} 26. Nf6+ {[%clk 0:00:12]}  Kh8 {[%clk 0:00:26]} 27. Nxh7 {[%clk 0:00:13]}  Kxh7 {[%clk 0:00:27]} 28. Nh5 {[%clk 0:00:12]}  Kg6 {[%clk 0:00:26]} 29. Nf4+ {[%clk 0:00:12]}  Kg7 {[%clk 0:00:25]} 30. Bd2 {[%clk 0:00:11]}  Rc8 {[%clk 0:00:23]} 31. Rac1 {[%clk 0:00:10]}  Rc5 {[%clk 0:00:23]} 32. Rxc5 {[%clk 0:00:09]}  dxc5 {[%clk 0:00:24]} 33. b3 {[%clk 0:00:10]}  Kf6 {[%clk 0:00:17]} 34. Rc1 {[%clk 0:00:10]}  b6 {[%clk 0:00:17]} 35. Kg2 {[%clk 0:00:10]}  Bb5 {[%clk 0:00:16]} 36. Kf3 {[%clk 0:00:10]}  Ba6 {[%clk 0:00:16]} 37. a4 {[%clk 0:00:08]}  Bb7 {[%clk 0:00:15]} 38. a5 {[%clk 0:00:08]}  Ke5 {[%clk 0:00:16]} 39. axb6 {[%clk 0:00:07]}  axb6 {[%clk 0:00:17]} 40. b4 {[%clk 0:00:05]}  Bxd5 {[%clk 0:00:17]} 41. Nxd5 {[%clk 0:00:03]}  Kxd5 {[%clk 0:00:18]} 42. bxc5 {[%clk 0:00:03]}  bxc5 {[%clk 0:00:19]} 43. Bxh6 {[%clk 0:00:03]}  c4 {[%clk 0:00:18]} 44. Bf4 {[%clk 0:00:03]}  c3 {[%clk 0:00:18]} 45. h4 {[%clk 0:00:03]}  Kc4 {[%clk 0:00:18]} 46. h5 {[%clk 0:00:02]}  d3 {[%clk 0:00:10]} 47. h6 {[%clk 0:00:00]}  Re7 {[%clk 0:00:11]} 0-1


[Site "https://www.chess.com"]

[Event "Titled Tuesday Blitz May 23 Late 2023"]
[White "Annaberdiyev, Meylis"]
[Black "Seletsky, Grigory"]
[WhiteFideId "14000563"]
[BlackFideId "14112191"]
[WhiteElo "2416"]
[BlackElo "2491"]
[Result "1-0"]
[Round "06"]
[TimeControl "180+2"]
[Date "2023.05.23"]
[WhiteClock "0:00:07"]
[BlackClock "0:00:05"]

1. e4 {[%clk 0:03:00]}  e5 {[%clk 0:02:59]} 2. Nf3 {[%clk 0:02:59]}  Nc6 {[%clk 0:02:59]} 3. Bb5 {[%clk 0:02:59]}  a6 {[%clk 0:02:59]} 4. Ba4 {[%clk 0:02:58]}  Nf6 {[%clk 0:02:57]} 5. O-O {[%clk 0:02:59]}  b5 {[%clk 0:02:55]} 6. Bb3 {[%clk 0:02:59]}  Be7 {[%clk 0:02:54]} 7. d3 {[%clk 0:02:54]}  O-O {[%clk 0:02:51]} 8. Re1 {[%clk 0:02:45]}  d6 {[%clk 0:02:50]} 9. c3 {[%clk 0:02:43]}  Na5 {[%clk 0:02:48]} 10. Bc2 {[%clk 0:02:36]}  c5 {[%clk 0:02:48]} 11. Nbd2 {[%clk 0:02:35]}  Qc7 {[%clk 0:02:46]} 12. Nf1 {[%clk 0:02:34]}  Nc6 {[%clk 0:02:35]} 13. Bg5 {[%clk 0:02:33]}  h6 {[%clk 0:02:30]} 14. Bxf6 {[%clk 0:02:33]}  Bxf6 {[%clk 0:02:30]} 15. Ne3 {[%clk 0:02:34]}  Ne7 {[%clk 0:02:28]} 16. a4 {[%clk 0:02:33]}  Be6 {[%clk 0:02:27]} 17. Bb3 {[%clk 0:02:33]}  c4 {[%clk 0:02:22]} 18. Ba2 {[%clk 0:02:23]}  Rfd8 {[%clk 0:02:13]} 19. Qe2 {[%clk 0:01:48]}  Rab8 {[%clk 0:02:06]} 20. Red1 {[%clk 0:01:32]}  cxd3 {[%clk 0:02:04]} 21. Qxd3 {[%clk 0:01:30]}  bxa4 {[%clk 0:01:56]} 22. Bxe6 {[%clk 0:01:15]}  fxe6 {[%clk 0:01:56]} 23. Qc2 {[%clk 0:01:16]}  d5 {[%clk 0:01:26]} 24. Rxa4 {[%clk 0:01:08]}  d4 {[%clk 0:01:01]} 25. Ng4 {[%clk 0:00:52]}  dxc3 {[%clk 0:00:56]} 26. Rxd8+ {[%clk 0:00:48]}  Qxd8 {[%clk 0:00:47]} 27. bxc3 {[%clk 0:00:47]}  Rb2 {[%clk 0:00:41]} 28. Qc1 {[%clk 0:00:43]}  Qb6 {[%clk 0:00:37]} 29. Ra1 {[%clk 0:00:36]}  h5 {[%clk 0:00:35]} 30. Nxf6+ {[%clk 0:00:29]}  gxf6 {[%clk 0:00:35]} 31. Qf1 {[%clk 0:00:30]}  a5 {[%clk 0:00:34]} 32. Ne1 {[%clk 0:00:17]}  Ng6 {[%clk 0:00:24]} 33. g3 {[%clk 0:00:16]}  Qb3 {[%clk 0:00:20]} 34. Ng2 {[%clk 0:00:12]}  Qxc3 {[%clk 0:00:17]} 35. Ne3 {[%clk 0:00:12]}  Kg7 {[%clk 0:00:14]} 36. Rc1 {[%clk 0:00:12]}  Qd4 {[%clk 0:00:12]} 37. Rd1 {[%clk 0:00:11]}  Qxe4 {[%clk 0:00:11]} 38. Rd7+ {[%clk 0:00:06]}  Kh6 {[%clk 0:00:10]} 39. Qc1 {[%clk 0:00:07]}  Rb1 {[%clk 0:00:05]} 40. Nf5# {[%clk 0:00:07]} 1-0


[Site "https://www.chess.com"]

[Event "Titled Tuesday Blitz May 23 Late 2023"]
[White "Aldokhin, Ivan"]
[Black "Dragomirescu, Robin-Alexandru"]
[WhiteFideId "24115720"]
[BlackFideId "1213849"]
[WhiteElo "2322"]
[BlackElo "2356"]
[Result "1-0"]
[Round "06"]
[TimeControl "180+2"]
[Date "2023.05.23"]
[WhiteClock "0:00:13"]
[BlackClock "0:00:00"]

1. e4 {[%clk 0:03:00]}  g6 {[%clk 0:02:59]} 2. d4 {[%clk 0:03:00]}  Nf6 {[%clk 0:02:59]} 3. Nc3 {[%clk 0:03:01]}  d5 {[%clk 0:02:59]} 4. exd5 {[%clk 0:02:51]}  Nxd5 {[%clk 0:03:00]} 5. Bc4 {[%clk 0:02:50]}  Nxc3 {[%clk 0:03:00]} 6. bxc3 {[%clk 0:02:42]}  Bg7 {[%clk 0:03:00]} 7. h4 {[%clk 0:02:33]}  c5 {[%clk 0:02:59]} 8. Be3 {[%clk 0:02:28]}  Nc6 {[%clk 0:02:56]} 9. Ne2 {[%clk 0:02:24]}  cxd4 {[%clk 0:02:29]} 10. cxd4 {[%clk 0:02:23]}  Qa5+ {[%clk 0:02:30]} 11. c3 {[%clk 0:02:16]}  h5 {[%clk 0:01:47]} 12. Qd2 {[%clk 0:02:12]}  Bf5 {[%clk 0:01:38]} 13. Ng3 {[%clk 0:02:01]}  O-O-O {[%clk 0:01:24]} 14. Nxf5 {[%clk 0:01:57]}  Qxf5 {[%clk 0:01:23]} 15. O-O {[%clk 0:01:56]}  Ne5 {[%clk 0:01:03]} 16. Be2 {[%clk 0:01:45]}  Rd7 {[%clk 0:00:54]} 17. Rab1 {[%clk 0:01:31]}  Ng4 {[%clk 0:00:49]} 18. Rb5 {[%clk 0:01:28]}  e5 {[%clk 0:00:39]} 19. Rfb1 {[%clk 0:01:24]}  Nxe3 {[%clk 0:00:35]} 20. Qxe3 {[%clk 0:01:02]}  Qf4 {[%clk 0:00:20]} 21. Qxf4 {[%clk 0:00:44]}  exf4 {[%clk 0:00:20]} 22. Bf3 {[%clk 0:00:45]}  b6 {[%clk 0:00:20]} 23. a4 {[%clk 0:00:46]}  Bf6 {[%clk 0:00:17]} 24. a5 {[%clk 0:00:45]}  Bd8 {[%clk 0:00:18]} 25. c4 {[%clk 0:00:38]}  Rxd4 {[%clk 0:00:10]} 26. c5 {[%clk 0:00:37]}  a6 {[%clk 0:00:05]} 27. Rxb6 {[%clk 0:00:18]}  Bxb6 {[%clk 0:00:06]} 28. axb6 {[%clk 0:00:17]}  Rc4 {[%clk 0:00:04]} 29. c6 {[%clk 0:00:17]}  Rd8 {[%clk 0:00:04]} 30. c7 {[%clk 0:00:15]}  Rd6 {[%clk 0:00:00]} 31. b7+ {[%clk 0:00:13]} 1-0


[Site "https://www.chess.com"]

[Event "Titled Tuesday Blitz May 23 Late 2023"]
[White "Goroshkov, Maksym"]
[Black "Petrovic, Aleksa"]
[WhiteFideId "14142716"]
[BlackFideId "967629"]
[WhiteElo "2322"]
[BlackElo "2309"]
[Result "1-0"]
[Round "06"]
[TimeControl "180+2"]
[Date "2023.05.23"]
[WhiteClock "0:01:31"]
[BlackClock "0:01:46"]

1. e4 {[%clk 0:02:59]}  d5 {[%clk 0:02:59]} 2. exd5 {[%clk 0:02:58]}  Qxd5 {[%clk 0:03:00]} 3. Nc3 {[%clk 0:02:58]}  Qe5+ {[%clk 0:03:00]} 4. Be2 {[%clk 0:02:57]}  Bg4 {[%clk 0:03:00]} 5. d4 {[%clk 0:02:56]}  Bxe2 {[%clk 0:03:01]} 6. Ngxe2 {[%clk 0:02:56]}  Qa5 {[%clk 0:03:01]} 7. O-O {[%clk 0:02:56]}  c6 {[%clk 0:03:01]} 8. b4 {[%clk 0:02:51]}  Qd8 {[%clk 0:02:58]} 9. b5 {[%clk 0:02:49]}  cxb5 {[%clk 0:02:52]} 10. Nxb5 {[%clk 0:02:47]}  Nf6 {[%clk 0:02:45]} 11. c4 {[%clk 0:02:44]}  g6 {[%clk 0:02:44]} 12. Bf4 {[%clk 0:02:43]}  Na6 {[%clk 0:02:41]} 13. Qa4 {[%clk 0:02:40]}  Qd7 {[%clk 0:02:40]} 14. Rad1 {[%clk 0:01:56]}  Bg7 {[%clk 0:02:36]} 15. Rfe1 {[%clk 0:01:56]}  O-O {[%clk 0:02:34]} 16. Qa3 {[%clk 0:01:54]}  Rfc8 {[%clk 0:02:22]} 17. Rc1 {[%clk 0:01:52]}  Nh5 {[%clk 0:02:14]} 18. Bg5 {[%clk 0:01:46]}  Rxc4 {[%clk 0:01:55]} 19. Rxc4 {[%clk 0:01:31]}  Qxb5 {[%clk 0:01:55]} 20. Qc1 {[%clk 0:01:32]}  Nb4 {[%clk 0:01:50]} 21. Rc8+ {[%clk 0:01:30]}  Rxc8 {[%clk 0:01:46]} 22. Qxc8+ {[%clk 0:01:31]} 1-0


[Site "https://www.chess.com"]

[Event "Titled Tuesday Blitz May 23 Late 2023"]
[White "reevecanada"]
[Black "ATM622"]
[WhiteElo "2435"]
[BlackElo "2556"]
[Result "1-0"]
[Round "06"]
[TimeControl "180+2"]
[Date "2023.05.23"]
[WhiteClock "0:01:18"]
[BlackClock "0:00:28"]

1. e4 {[%clk 0:03:00]}  c6 {[%clk 0:02:57]} 2. c4 {[%clk 0:02:59]}  d5 {[%clk 0:02:57]} 3. cxd5 {[%clk 0:02:59]}  cxd5 {[%clk 0:02:57]} 4. exd5 {[%clk 0:03:00]}  Nf6 {[%clk 0:02:58]} 5. Nc3 {[%clk 0:03:00]}  Nxd5 {[%clk 0:02:57]} 6. Nf3 {[%clk 0:03:01]}  Nc6 {[%clk 0:02:56]} 7. Bb5 {[%clk 0:03:00]}  g6 {[%clk 0:02:54]} 8. O-O {[%clk 0:02:59]}  Bg7 {[%clk 0:02:53]} 9. d4 {[%clk 0:02:58]}  O-O {[%clk 0:02:53]} 10. h3 {[%clk 0:02:57]}  Bf5 {[%clk 0:02:47]} 11. a3 {[%clk 0:02:56]}  Rc8 {[%clk 0:02:45]} 12. Re1 {[%clk 0:02:55]}  Nxc3 {[%clk 0:02:36]} 13. bxc3 {[%clk 0:02:54]}  Na5 {[%clk 0:02:35]} 14. Bg5 {[%clk 0:02:45]}  f6 {[%clk 0:02:26]} 15. Bd2 {[%clk 0:02:41]}  Qd5 {[%clk 0:02:16]} 16. Qa4 {[%clk 0:02:37]}  Nc4 {[%clk 0:01:43]} 17. Rxe7 {[%clk 0:02:14]}  a6 {[%clk 0:01:30]} 18. Bxc4 {[%clk 0:01:58]}  Rxc4 {[%clk 0:01:31]} 19. Qb3 {[%clk 0:01:58]}  b5 {[%clk 0:01:27]} 20. a4 {[%clk 0:01:55]}  Bxh3 {[%clk 0:01:23]} 21. axb5 {[%clk 0:01:49]}  axb5 {[%clk 0:01:23]} 22. Raa7 {[%clk 0:01:47]}  Bh8 {[%clk 0:01:04]} 23. gxh3 {[%clk 0:01:38]}  Qxf3 {[%clk 0:01:01]} 24. Qxb5 {[%clk 0:01:35]}  Qc6 {[%clk 0:00:46]} 25. Qb3 {[%clk 0:01:23]}  Qd5 {[%clk 0:00:43]} 26. Rad7 {[%clk 0:01:21]}  Qc6 {[%clk 0:00:28]} 27. Rc7 {[%clk 0:01:18]} 1-0


[Site "https://www.chess.com"]

[Event "Titled Tuesday Blitz May 23 Late 2023"]
[White "StarkyNZ"]
[Black "gueraumasague"]
[WhiteElo "2360"]
[BlackElo "2556"]
[Result "1-0"]
[Round "06"]
[TimeControl "180+2"]
[Date "2023.05.23"]
[WhiteClock "0:01:33"]
[BlackClock "0:01:23"]

1. d4 {[%clk 0:03:00]}  g6 {[%clk 0:03:00]} 2. e4 {[%clk 0:03:00]}  Bg7 {[%clk 0:03:01]} 3. Be3 {[%clk 0:03:01]}  c6 {[%clk 0:03:01]} 4. Nc3 {[%clk 0:03:01]}  d5 {[%clk 0:03:01]} 5. exd5 {[%clk 0:03:00]}  cxd5 {[%clk 0:03:02]} 6. Bd3 {[%clk 0:02:57]}  Nc6 {[%clk 0:03:02]} 7. a3 {[%clk 0:02:57]}  Nh6 {[%clk 0:02:55]} 8. Nge2 {[%clk 0:02:44]}  Nf5 {[%clk 0:02:55]} 9. Bxf5 {[%clk 0:02:43]}  Bxf5 {[%clk 0:02:56]} 10. Nf4 {[%clk 0:02:42]}  e5 {[%clk 0:02:41]} 11. dxe5 {[%clk 0:02:18]}  d4 {[%clk 0:02:41]} 12. g4 {[%clk 0:02:18]}  Bc8 {[%clk 0:02:27]} 13. Ne4 {[%clk 0:02:01]}  dxe3 {[%clk 0:02:19]} 14. Nd6+ {[%clk 0:02:01]}  Kf8 {[%clk 0:02:17]} 15. Qd5 {[%clk 0:01:59]}  exf2+ {[%clk 0:02:06]} 16. Kxf2 {[%clk 0:01:59]}  Nxe5 {[%clk 0:01:59]} 17. Rhe1 {[%clk 0:01:53]}  Qh4+ {[%clk 0:01:55]} 18. Kg1 {[%clk 0:01:44]}  Qxg4+ {[%clk 0:01:52]} 19. Ng2 {[%clk 0:01:41]}  Qf3 {[%clk 0:01:23]} 20. Rxe5 {[%clk 0:01:33]}  Qxd5 {[%clk 0:01:23]} 21. Re8# {[%clk 0:01:33]} 1-0


[Site "https://www.chess.com"]

[Event "Titled Tuesday Blitz May 23 Late 2023"]
[White "Chyngyz, Sultai"]
[Black "Kokoszczynski, Jan"]
[WhiteFideId "13803158"]
[BlackFideId "1174460"]
[WhiteElo "1408"]
[BlackElo "2139"]
[Result "1-0"]
[Round "06"]
[TimeControl "180+2"]
[Date "2023.05.23"]
[WhiteClock "0:01:26"]
[BlackClock "0:00:02"]

1. e4 {[%clk 0:03:00]}  c6 {[%clk 0:02:58]} 2. Nf3 {[%clk 0:02:58]}  d5 {[%clk 0:02:58]} 3. Nc3 {[%clk 0:02:58]}  dxe4 {[%clk 0:02:57]} 4. Nxe4 {[%clk 0:02:59]}  Nf6 {[%clk 0:02:57]} 5. Qe2 {[%clk 0:03:00]}  Nxe4 {[%clk 0:02:57]} 6. Qxe4 {[%clk 0:03:00]}  Be6 {[%clk 0:02:57]} 7. d4 {[%clk 0:02:59]}  Nd7 {[%clk 0:02:56]} 8. Bd3 {[%clk 0:02:58]}  Nf6 {[%clk 0:02:56]} 9. Qe2 {[%clk 0:02:59]}  Bg4 {[%clk 0:02:56]} 10. c3 {[%clk 0:02:58]}  e6 {[%clk 0:02:55]} 11. O-O {[%clk 0:02:59]}  Be7 {[%clk 0:02:56]} 12. h3 {[%clk 0:02:59]}  Bh5 {[%clk 0:02:56]} 13. Bf4 {[%clk 0:02:59]}  O-O {[%clk 0:02:55]} 14. Bc2 {[%clk 0:02:53]}  Nd5 {[%clk 0:02:44]} 15. Bg3 {[%clk 0:02:52]}  Bd6 {[%clk 0:02:41]} 16. Bxd6 {[%clk 0:02:40]}  Qxd6 {[%clk 0:02:42]} 17. a4 {[%clk 0:02:38]}  Rad8 {[%clk 0:01:50]} 18. a5 {[%clk 0:02:35]}  Qf4 {[%clk 0:01:13]} 19. Qe4 {[%clk 0:02:23]}  Qh6 {[%clk 0:01:00]} 20. Ne5 {[%clk 0:02:20]}  Bg6 {[%clk 0:00:21]} 21. Nxg6 {[%clk 0:02:19]}  hxg6 {[%clk 0:00:20]} 22. a6 {[%clk 0:02:16]}  b6 {[%clk 0:00:19]} 23. Qf3 {[%clk 0:02:14]}  Qd2 {[%clk 0:00:18]} 24. Rac1 {[%clk 0:02:10]}  Qf4 {[%clk 0:00:17]} 25. Qe2 {[%clk 0:02:09]}  Rd7 {[%clk 0:00:15]} 26. g3 {[%clk 0:02:09]}  Qf6 {[%clk 0:00:15]} 27. Be4 {[%clk 0:02:09]}  Rfd8 {[%clk 0:00:15]} 28. Bg2 {[%clk 0:02:09]}  Qe7 {[%clk 0:00:15]} 29. Rfe1 {[%clk 0:02:08]}  c5 {[%clk 0:00:15]} 30. Qb5 {[%clk 0:02:02]}  cxd4 {[%clk 0:00:13]} 31. cxd4 {[%clk 0:02:03]}  Qf6 {[%clk 0:00:11]} 32. Re4 {[%clk 0:01:54]}  Qg5 {[%clk 0:00:08]} 33. Rce1 {[%clk 0:01:51]}  Qd2 {[%clk 0:00:08]} 34. h4 {[%clk 0:01:47]}  Qb4 {[%clk 0:00:08]} 35. Qe2 {[%clk 0:01:45]}  Nf6 {[%clk 0:00:04]} 36. Re3 {[%clk 0:01:42]}  Rxd4 {[%clk 0:00:04]} 37. Rc3 {[%clk 0:01:43]}  Qd6 {[%clk 0:00:03]} 38. Rc6 {[%clk 0:01:42]}  Qd7 {[%clk 0:00:03]} 39. Qe5 {[%clk 0:01:41]}  Rd1 {[%clk 0:00:03]} 40. Rxd1 {[%clk 0:01:39]}  Qxd1+ {[%clk 0:00:04]} 41. Bf1 {[%clk 0:01:39]}  Ng4 {[%clk 0:00:03]} 42. Qf4 {[%clk 0:01:36]}  Rd2 {[%clk 0:00:02]} 43. Rc8+ {[%clk 0:01:29]}  Kh7 {[%clk 0:00:02]} 44. Qxf7 {[%clk 0:01:29]}  g5 {[%clk 0:00:01]} 45. h5 {[%clk 0:01:27]}  Nh6 {[%clk 0:00:02]} 46. Qg6# {[%clk 0:01:26]} 1-0


[Site "https://www.chess.com"]

[Event "Titled Tuesday Blitz May 23 Late 2023"]
[White "Matute Escobar, Roxanny"]
[Black "Ognean, Mihnea-Ionut"]
[WhiteFideId "3926028"]
[BlackFideId "1232347"]
[WhiteElo "1844"]
[BlackElo "2215"]
[Result "0-1"]
[Round "06"]
[TimeControl "180+2"]
[Date "2023.05.23"]
[WhiteClock "0:00:10"]
[BlackClock "0:00:56"]

1. e4 {[%clk 0:03:00]}  g6 {[%clk 0:02:57]} 2. d4 {[%clk 0:03:00]}  Bg7 {[%clk 0:02:57]} 3. Nc3 {[%clk 0:02:59]}  d6 {[%clk 0:02:58]} 4. Be3 {[%clk 0:02:59]}  a6 {[%clk 0:02:57]} 5. Qd2 {[%clk 0:02:59]}  b5 {[%clk 0:02:57]} 6. O-O-O {[%clk 0:02:57]}  Nd7 {[%clk 0:02:54]} 7. Kb1 {[%clk 0:02:57]}  Bb7 {[%clk 0:02:54]} 8. f3 {[%clk 0:02:57]}  Rc8 {[%clk 0:02:54]} 9. h4 {[%clk 0:02:53]}  h5 {[%clk 0:02:53]} 10. Nh3 {[%clk 0:02:53]}  c5 {[%clk 0:02:53]} 11. Ng5 {[%clk 0:02:44]}  Qa5 {[%clk 0:02:36]} 12. g4 {[%clk 0:02:26]}  b4 {[%clk 0:02:34]} 13. Nd5 {[%clk 0:02:20]}  Bxd5 {[%clk 0:02:30]} 14. exd5 {[%clk 0:02:21]}  Ngf6 {[%clk 0:02:29]} 15. gxh5 {[%clk 0:02:19]}  Rxh5 {[%clk 0:02:26]} 16. dxc5 {[%clk 0:02:17]}  Nxc5 {[%clk 0:02:26]} 17. Bh3 {[%clk 0:02:13]}  Rb8 {[%clk 0:02:17]} 18. Bg4 {[%clk 0:02:11]}  Rh8 {[%clk 0:02:16]} 19. Bd4 {[%clk 0:01:59]}  Kf8 {[%clk 0:02:06]} 20. Qe2 {[%clk 0:01:00]}  Na4 {[%clk 0:01:58]} 21. Rhe1 {[%clk 0:00:49]}  Nxd5 {[%clk 0:01:50]} 22. Bxg7+ {[%clk 0:00:49]}  Kxg7 {[%clk 0:01:51]} 23. Qd3 {[%clk 0:00:32]}  Nac3+ {[%clk 0:01:48]} 24. Kc1 {[%clk 0:00:31]}  Qxa2 {[%clk 0:01:44]} 25. Kd2 {[%clk 0:00:22]}  Nxd1 {[%clk 0:01:31]} 26. Rxd1 {[%clk 0:00:20]}  Rxh4 {[%clk 0:01:25]} 27. Re1 {[%clk 0:00:19]}  Rh2+ {[%clk 0:01:24]} 28. Re2 {[%clk 0:00:18]}  Rxe2+ {[%clk 0:01:22]} 29. Qxe2 {[%clk 0:00:19]}  Qxb2 {[%clk 0:01:21]} 30. Qd3 {[%clk 0:00:19]}  Qc3+ {[%clk 0:01:21]} 31. Qxc3+ {[%clk 0:00:19]}  bxc3+ {[%clk 0:01:21]} 32. Kd3 {[%clk 0:00:19]}  Rb4 {[%clk 0:01:12]} 33. Bd7 {[%clk 0:00:19]}  e5 {[%clk 0:01:02]} 34. Ne4 {[%clk 0:00:19]}  Rd4+ {[%clk 0:01:02]} 35. Ke2 {[%clk 0:00:19]}  f5 {[%clk 0:00:58]} 36. Nxd6 {[%clk 0:00:17]}  Rd2+ {[%clk 0:00:58]} 37. Ke1 {[%clk 0:00:17]}  Ne3 {[%clk 0:00:56]} 38. Bc6 {[%clk 0:00:10]}  Rxd6 {[%clk 0:00:56]} 0-1


[Site "https://www.chess.com"]